bitfinex/quotes_ETHUSD_20250620
["timestamp","ask_amount","ask_price","bid_price","bid_amount"]
[1750417612412,0.3669479,2555.1,2555.0,3.91380048]
[1750417612810,0.3669479,2555.1,2554.9,3.91397173]
[1750417612811,0.36694811,2555.1,2554.9,3.91397173]
[1750417612997,0.36694811,2555.0,2554.9,3.91397173]
[1750417613204,0.36694825,2555.0,2554.9,4.85690906]
[1750417613576,0.36694091,2555.0,2554.9,4.85690906]
[1750417615709,0.22016703,2555.2,2554.9,0.94293733]
[1750417615887,0.36694505,2555.1,2554.9,3.91402567]
[1750417616092,0.36694505,2555.0,2554.9,3.91402567]
[1750417616496,0.3669555,2555.0,2554.9,3.91402567]
[1750417617917,0.36696093,2555.0,2554.9,3.91402567]
[1750417618417,0.36696093,2555.0,2554.8,4.72860709]
[1750417618721,20.65702915,2555.3,2554.8,5.59289586]
[1750417618722,0.36696418,2554.9,2554.8,5.59289586]
[1750417619721,0.22017833,2555.2,2554.9,3.91402367]
[1750417619922,0.36696662,2555.1,2554.9,3.91402367]
[1750417620087,0.36696671,2555.0,2554.9,3.91402367]
[1750417620615,0.36696671,2555.0,2554.5,0.7524]
[1750417620817,11.48109877,2555.1,2554.7,3.91434356]
[1750417620987,0.36697519,2555.0,2554.7,3.91434356]
[1750417621189,0.36697464,2554.9,2554.7,3.91434356]
[1750417621389,0.36697476,2554.8,2554.7,3.91434356]
[1750417623091,7.56728321,2555.1,2554.8,3.91410758]
[1750417623292,0.36696221,2555.0,2554.8,3.91410758]
[1750417623487,0.36695975,2554.9,2554.8,3.91410758]
[1750417623687,0.36695952,2554.9,2554.8,3.91410758]
[1750417624222,0.36696077,2554.9,2554.8,3.91410758]
[1750417625222,0.36696077,2554.9,2554.8,3.91420072]
[1750417626610,0.36695502,2554.9,2554.8,3.91420072]
[1750417626796,0.36695496,2554.9,2554.8,3.91420072]
[1750417627125,0.36695496,2554.9,2554.6,3.91443863]
[1750417627328,0.3669439,2554.8,2554.7,3.91428319]
[1750417627526,7.56728321,2555.1,2554.7,3.9142565]
[1750417627826,0.36694703,2555.0,2554.8,3.91409043]
[1750417628015,0.36694056,2554.9,2554.8,3.91409043]
[1750417628606,0.36694243,2554.9,2554.8,3.91409043]
[1750417630142,0.8237,2555.1,2554.9,3.91402739]
[1750417630432,0.36694339,2555.0,2554.8,3.91411091]
[1750417630631,0.36694339,2554.9,2554.8,3.91411091]
[1750417631237,0.36694743,2554.9,2554.8,3.91411091]
[1750417632535,0.8237,2555.1,2554.9,3.91403765]
[1750417632733,0.36694345,2555.0,2554.9,3.91403765]
[1750417632910,0.36694345,2555.0,2554.8,3.9140851]
[1750417633211,0.36694345,2554.9,2554.8,3.9140851]
[1750417634027,0.36693953,2554.9,2554.8,3.9140851]
[1750417634894,0.36693953,2554.9,2554.6,10.22546015]
[1750417634895,1.16144185,2554.9,2554.5,0.7524]
[1750417635154,0.58713265,2554.8,2554.7,3.91435393]
[1750417635300,0.36694185,2554.8,2554.7,3.91435393]
[1750417635499,3.91359934,2555.2,2554.7,3.91435393]
[1750417635694,0.36692909,2555.1,2554.6,4.68220163]
[1750417635899,0.36693844,2555.0,2554.6,10.23450163]
[1750417636209,0.36693844,2555.0,2554.0,2.161]
[1750417636210,4.68890072,2554.8,2554.3,0.7684]
[1750417636423,0.36693844,2554.7,2554.6,3.91450716]
[1750417636622,0.7747,2555.2,2554.6,3.91450716]
[1750417636623,10.0,2555.0,2554.6,3.91450716]
[1750417636824,0.36694718,2554.9,2554.7,3.91434367]
[1750417637029,0.36694718,2554.8,2554.4,10.23579299]
[1750417637236,1.97794718,2554.7,2554.6,3.91450716]
[1750417637899,1.97794718,2554.7,2554.6,4.73100716]
[1750417638098,1.9779443,2554.7,2554.6,4.73100716]
[1750417638336,1.97793436,2554.7,2554.6,4.73100716]
[1750417638514,1.97790434,2554.7,2554.6,4.73100716]
[1750417638914,1.9779058,2554.7,2554.6,4.73100716]
[1750417639435,1.97791227,2554.7,2554.6,4.73100716]
[1750417640239,1.97791247,2554.7,2554.6,4.73100716]
[1750417641527,1.97792074,2554.7,2554.6,4.73100716]
[1750417641734,1.97792075,2554.7,2554.6,4.73100716]
[1750417642242,1.97792069,2554.7,2554.6,4.73100716]
[1750417642907,1.97792069,2554.7,2554.4,3.9147727]
[1750417643108,0.36692069,2554.6,2554.3,3.91492446]
[1750417643309,0.36692069,2554.5,2554.3,3.91492446]
[1750417643537,0.36692069,2554.4,2554.3,3.91492446]
[1750417643925,0.36692069,2554.4,2554.2,3.91506782]
[1750417644127,3.91453466,2554.6,2554.0,3.91539388]
[1750417644340,3.91453466,2554.6,2553.9,0.8278]
[1750417644341,0.36667427,2554.5,2553.9,0.8278]
[1750417644649,1.18678927,2554.4,2554.1,3.91524878]
[1750417644939,0.36669571,2554.3,2553.9,4.7433137]
[1750417645155,1.97769571,2554.2,2554.1,3.91527348]
[1750417645509,1.611,2554.2,2554.1,3.91527348]
[1750417646557,1.97769888,2554.2,2554.1,3.91527348]
[1750417647346,1.611,2554.2,2554.0,3.91537255]
[1750417647741,1.611,2554.2,2553.9,3.91547318]
[1750417647942,1.611,2554.2,2553.9,3.91556097]
[1750417648141,1.611,2554.2,2553.8,3.91566656]
[1750417648334,1.611,2554.2,2553.9,3.91555366]
[1750417648718,1.611,2554.2,2553.7,0.7538]
[1750417648918,1.611,2554.2,2553.8,3.91573341]
[1750417649448,1.611,2554.2,2553.9,3.91551534]
[1750417649634,1.611,2554.2,2554.0,3.91542651]
[1750417650541,1.611,2554.2,2553.8,3.91573341]
[1750417650745,1.611,2554.2,2553.9,3.91552791]
[1750417652642,1.611,2554.2,2553.8,3.91571686]
[1750417653029,1.611,2554.2,2553.8,3.91573341]
[1750417653228,1.611,2554.2,2553.9,3.91551296]
[1750417653855,1.611,2554.2,2553.7,0.7538]
[1750417654059,1.611,2554.2,2553.9,3.91554531]
[1750417654277,1.611,2554.2,2553.7,3.91581094]
[1750417654425,5.52626231,2554.2,2553.7,3.91581094]
[1750417654764,0.8129,2554.1,2553.7,3.91580084]
[1750417654944,0.8129,2554.1,2553.8,3.91566495]
[1750417655141,0.8129,2554.1,2553.7,4.38834299]
[1750417655763,4.72821352,2554.1,2553.7,3.91581291]
[1750417656072,4.72821352,2554.1,2553.6,3.91596872]
[1750417656428,0.8129,2554.1,2553.8,3.91566198]
[1750417656872,0.8129,2554.1,2553.7,3.91580898]
[1750417657174,0.8129,2554.1,2553.8,3.91567084]
[1750417657678,0.8129,2554.1,2553.7,3.91576922]
[1750417658033,0.8129,2554.1,2553.6,3.91598393]
[1750417658227,4.7282186,2554.1,2553.5,4.72567793]
[1750417658430,4.7282186,2554.1,2553.6,3.91594578]
[1750417658740,4.7282186,2554.1,2553.6,3.9160401]
[1750417658945,0.8129,2554.1,2553.8,3.91573148]
[1750417659277,4.72819256,2554.1,2553.7,3.91587306]
[1750417659439,0.8129,2554.1,2553.7,3.91587306]
[1750417659642,0.36572847,2554.0,2553.8,3.91571171]
[1750417659861,0.36572847,2553.9,2553.8,3.91571171]
[1750417660081,0.8129,2554.1,2553.8,3.91571171]
[1750417660291,0.3658046,2554.0,2553.8,3.91571171]
[1750417660450,0.8129,2554.1,2553.9,3.91558009]
[1750417660780,0.36580216,2554.0,2553.8,3.91564194]
[1750417661076,7.938,2554.2,2554.0,3.9153518]
[1750417661231,0.36579855,2554.1,2554.0,3.9153518]
[1750417661955,7.938,2554.2,2554.0,3.9153518]
[1750417662160,0.36592118,2554.1,2554.0,3.9153518]
[1750417662693,0.36592118,2554.1,2554.0,4.8132614]
[1750417662989,1.611,2554.2,2554.1,3.91527348]
[1750417663134,1.9769451,2554.2,2554.1,3.91527348]
[1750417663541,1.976945,2554.2,2554.1,3.91527348]
[1750417664475,1.976945,2554.2,2553.8,1.14807966]
[1750417664650,0.365945,2554.1,2554.0,3.91539711]
[1750417665350,0.365945,2554.1,2553.9,3.9155086]
[1750417665684,0.3661784,2554.0,2553.9,3.9155086]
[1750417666180,0.3661784,2554.0,2553.8,3.91564195]
[1750417666482,1.611,2554.2,2553.7,3.91581532]
[1750417666679,0.36618387,2554.1,2553.7,3.91578012]
[1750417666838,0.36618387,2554.0,2553.8,3.91571758]
[1750417667038,0.36620359,2553.9,2553.8,3.91571758]
[1750417667241,0.36622454,2553.9,2553.8,3.91571758]
[1750417668297,6.329,2554.1,2553.9,3.91552978]
[1750417668460,0.36642007,2554.0,2553.9,3.91552978]
[1750417668883,0.36642007,2554.0,2553.9,4.70256999]
[1750417669268,1.611,2554.2,2554.0,3.91532112]
[1750417669591,0.36643056,2554.1,2554.0,3.91532112]
[1750417670256,1.611,2554.2,2554.0,3.91532112]
[1750417670456,0.36642648,2554.1,2554.0,3.91532112]
[1750417670656,0.36642698,2554.1,2554.0,4.77711023]
[1750417671284,1.611,2554.2,2554.0,4.77711023]
[1750417671556,0.36677804,2554.1,2554.0,4.77711023]
[1750417672106,0.36678072,2554.1,2554.0,4.77711023]
[1750417672900,0.36679504,2554.1,2554.0,4.77711023]
[1750417673484,1.611,2554.2,2554.0,4.77711023]
[1750417673707,0.36679536,2554.1,2554.0,4.77711023]
[1750417674491,0.36679536,2554.1,2554.0,0.86178911]
[1750417674797,1.611,2554.2,2554.0,0.86178911]
[1750417675009,0.36696164,2554.1,2554.0,0.86178911]
[1750417675808,0.36696164,2554.1,2554.0,4.77721589]
[1750417676806,0.36696608,2554.1,2554.0,4.77721589]
[1750417677898,0.36701199,2554.1,2554.0,4.77721589]
[1750417680302,0.36700667,2554.1,2554.0,5.60646676]
[1750417680504,1.611,2554.2,2554.1,3.91527348]
[1750417680804,1.611,2554.2,2554.1,5.93336166]
[1750417680805,1.97796399,2554.2,2554.1,5.93336166]
[1750417680994,1.97796399,2554.2,2554.1,5.9725099]
[1750417681568,1.97796399,2554.2,2554.1,5.93336166]
[1750417681971,1.97778413,2554.2,2554.1,5.93336166]
[1750417683008,1.611,2554.2,2554.1,5.93336166]
[1750417683170,1.97777441,2554.2,2554.1,5.93336166]
[1750417684014,1.97777441,2554.2,2554.1,3.91527348]
[1750417684727,1.97766709,2554.2,2554.1,3.91527348]
[1750417686011,1.97764565,2554.2,2554.1,3.91527348]
[1750417686809,1.97758754,2554.2,2554.1,3.91527348]
[1750417687576,1.611,2554.2,2554.1,3.91527348]
[1750417687778,1.97757394,2554.2,2554.1,4.86353242]
[1750417688872,1.97755548,2554.2,2554.1,4.86353242]
[1750417690377,1.611,2554.2,2554.1,4.86353242]
[1750417692005,1.97757489,2554.2,2554.1,4.86353242]
[1750417692815,1.611,2554.2,2554.1,4.86353242]
[1750417693381,0.7967,2555.0,2554.3,0.55]
[1750417693615,0.36646906,2554.9,2554.8,3.9140539]
[1750417693811,0.36646906,2554.9,2554.6,3.91442995]
[1750417694129,0.7967,2555.0,2554.6,3.91442995]
[1750417694130,0.36650155,2554.8,2554.6,3.91442995]
[1750417694302,0.36650155,2554.7,2554.6,3.91442995]
[1750417694503,0.36649973,2554.7,2554.5,3.91458412]
[1750417694726,7.49868321,2554.9,2554.5,3.91458412]
[1750417694727,0.36649973,2554.6,2554.5,3.91458412]
[1750417695924,0.36649973,2554.6,2554.5,3.9146604]
[1750417696094,0.36649973,2554.6,2554.3,10.23986933]
[1750417696095,0.36649973,2554.6,2554.4,3.91481365]
[1750417696295,0.36649973,2554.5,2554.4,3.91481365]
[1750417697088,0.8025,2554.6,2554.4,3.91481365]
[1750417697290,0.36643259,2554.5,2554.4,3.91481365]
[1750417700125,1.618,2554.6,2554.5,3.9146604]
[1750417700294,1.98440866,2554.6,2554.5,3.9146604]
[1750417700489,0.36640866,2554.6,2554.5,3.9146604]
[1750417700694,1.98440866,2554.6,2554.5,3.9146604]
[1750417701833,1.98438442,2554.6,2554.5,3.9146604]
[1750417702716,1.618,2554.6,2554.5,3.9146604]
[1750417702922,1.98442656,2554.6,2554.5,3.9146604]
[1750417704301,0.36642656,2554.6,2554.5,3.9146604]
[1750417704501,1.98442656,2554.6,2554.5,3.9146604]
[1750417704701,1.98441461,2554.6,2554.5,3.9146604]
[1750417705626,1.98448247,2554.6,2554.5,3.9146604]
[1750417706349,1.98448262,2554.6,2554.5,3.9146604]
[1750417708130,0.36648262,2554.6,2554.5,3.9146604]
[1750417708338,1.618,2554.6,2554.5,3.9146604]
[1750417708657,0.36658843,2554.6,2554.5,3.9146604]
[1750417708970,1.98458843,2554.6,2554.5,3.9146604]
[1750417709163,0.36658843,2554.6,2554.5,3.9146604]
[1750417709309,1.98458843,2554.6,2554.5,3.9146604]
[1750417709513,0.36658843,2554.6,2554.5,3.9146604]
[1750417709743,1.98458843,2554.6,2554.5,3.9146604]
[1750417709945,1.98458843,2554.6,2554.4,3.91471699]
[1750417710155,0.36658843,2554.5,2554.4,3.91471699]
[1750417712054,0.36658843,2554.5,2554.3,3.9148597]
[1750417712218,1.618,2554.6,2554.4,3.91481365]
[1750417712420,0.36677698,2554.5,2554.4,3.91481365]
[1750417713951,1.618,2554.6,2554.4,3.91481365]
[1750417714121,0.3667891,2554.5,2554.4,3.91481365]
[1750417715355,1.618,2554.6,2554.5,3.9146604]
[1750417715660,1.98476274,2554.6,2554.5,3.9146604]
[1750417715830,1.618,2554.6,2554.5,3.9146604]
[1750417716152,1.98476765,2554.6,2554.5,3.9146604]
[1750417716521,1.98479845,2554.6,2554.5,3.9146604]
[1750417716868,1.984796,2554.6,2554.5,3.9146604]
[1750417717353,0.366796,2554.6,2554.5,3.9146604]
[1750417717558,1.984796,2554.6,2554.5,3.9146604]
[1750417717765,1.98472551,2554.6,2554.5,3.9146604]
[1750417718538,1.98472923,2554.6,2554.5,3.9146604]
[1750417718867,1.98472013,2554.6,2554.5,3.9146604]
[1750417719161,1.98472962,2554.6,2554.5,3.9146604]
[1750417719354,1.618,2554.6,2554.5,3.9146604]
[1750417719557,1.98472468,2554.6,2554.5,3.9146604]
[1750417719958,0.36672468,2554.6,2554.5,3.9146604]
[1750417720163,1.98472468,2554.6,2554.5,3.9146604]
[1750417722226,1.98472468,2554.6,2554.4,3.9147049]
[1750417722448,1.618,2554.6,2554.5,3.9146604]
[1750417726529,1.613,2554.6,2554.5,3.9146604]
[1750417727275,1.613,2554.6,2554.4,3.91471922]
[1750417727567,1.613,2554.6,2554.5,3.9146604]
[1750417728127,1.97993011,2554.6,2554.5,3.9146604]
[1750417728331,1.613,2554.6,2554.5,3.9146604]
[1750417728639,1.97993104,2554.6,2554.5,3.9146604]
[1750417729037,1.97992615,2554.6,2554.5,3.9146604]
[1750417729847,1.97991861,2554.6,2554.5,3.9146604]
[1750417731091,1.97991861,2554.6,2554.4,3.91473162]
[1750417731246,0.36691961,2554.5,2554.4,3.91473162]
[1750417731445,0.36691961,2554.5,2554.3,3.9148419]
[1750417731677,0.36691961,2554.4,2554.3,3.9148419]
[1750417732379,1.613,2554.6,2554.4,3.91476555]
[1750417732575,0.36691136,2554.5,2554.3,3.91488798]
[1750417732776,0.36691136,2554.4,2554.3,3.91488798]
[1750417733781,1.613,2554.6,2554.4,3.91471091]
[1750417734083,0.36685209,2554.5,2554.4,3.91471091]
[1750417734284,0.36684154,2554.5,2554.4,3.91471091]
[1750417736804,1.613,2554.6,2554.5,3.9146604]
[1750417736968,1.97982613,2554.6,2554.5,3.9146604]
[1750417737171,1.97983558,2554.6,2554.5,3.9146604]
[1750417738408,0.36683558,2554.6,2554.5,11.05565764]
[1750417738554,0.36683558,2554.6,2554.5,11.01651235]
[1750417739581,1.613,2555.1,2554.8,3.91416814]
[1750417739754,0.36673184,2555.0,2554.8,3.91416814]
[1750417739954,0.36673184,2554.9,2554.8,3.91416814]
[1750417740172,0.36673184,2554.9,2554.7,3.91425993]
[1750417740376,0.36673184,2554.8,2554.6,3.91440044]
[1750417740577,0.36673184,2554.7,2554.6,3.91440044]
[1750417740777,0.36673184,2554.7,2554.6,5.48973832]
[1750417741177,5.52675793,2555.1,2554.7,3.91433062]
[1750417741352,0.366664,2555.0,2554.7,3.91433062]
[1750417741555,0.366664,2554.9,2554.7,3.91433062]
[1750417741755,0.366664,2554.8,2554.7,3.91433062]
[1750417742166,0.36666309,2554.8,2554.7,3.91433062]
[1750417742655,0.36661676,2554.8,2554.7,3.91433062]
[1750417745080,0.7614,2555.1,2554.9,3.91395663]
[1750417745276,1.97975711,2555.0,2554.9,3.91395663]
[1750417745519,1.97975711,2555.0,2554.8,3.91412736]
[1750417745696,0.36675711,2554.9,2554.8,3.91412736]
[1750417746007,0.36676785,2554.9,2554.8,3.91412736]
[1750417746392,1.613,2555.0,2554.9,3.91404751]
[1750417746601,1.979773,2555.0,2554.9,3.91404751]
[1750417746909,1.97971813,2555.0,2554.8,3.91412384]
[1750417747104,0.36671813,2554.9,2554.8,3.91412384]
[1750417747812,1.613,2555.0,2554.8,3.91412384]
[1750417747969,0.36670716,2554.9,2554.8,3.91412384]
[1750417748289,0.36670728,2554.9,2554.8,3.91412384]
[1750417748797,0.36667287,2554.9,2554.8,3.91412384]
[1750417749904,0.36665412,2554.9,2554.8,3.91412384]
[1750417750702,0.36660911,2554.9,2554.8,3.91412384]
[1750417751287,1.613,2555.0,2554.9,3.91404751]
[1750417751484,1.97960642,2555.0,2554.9,3.91404751]
[1750417752890,1.97960642,2555.0,2554.8,3.91413277]
[1750417753094,0.36660642,2554.9,2554.8,3.91413277]
[1750417753419,0.36660642,2554.9,2554.6,3.91438676]
[1750417753616,1.613,2555.0,2554.7,3.91428312]
[1750417753617,0.36650823,2554.8,2554.7,3.91428312]
[1750417755310,0.3664337,2554.8,2554.7,3.91428312]
[1750417756381,1.613,2555.0,2554.8,3.91415247]
[1750417756727,0.36640384,2554.9,2554.8,3.91415247]
[1750417757016,0.36641049,2554.9,2554.8,3.91415247]
[1750417758735,0.36643166,2554.9,2554.8,3.91415247]
[1750417759118,0.36644455,2554.9,2554.8,3.91415247]
[1750417761637,0.36641849,2554.9,2554.8,3.91415247]
[1750417761939,0.36643143,2554.9,2554.8,3.91415247]
[1750417763900,1.97843143,2554.9,2554.8,3.91415247]
[1750417764101,0.36643143,2554.9,2554.8,3.91415247]
[1750417764520,0.36650227,2554.9,2554.8,3.91415247]
[1750417764718,0.36650114,2554.9,2554.8,3.91415247]
[1750417765250,0.36650114,2554.9,2554.7,3.91426334]
[1750417765462,0.36650114,2554.8,2554.7,3.91426334]
[1750417767527,0.36679468,2554.8,2554.7,3.91426334]
[1750417767767,0.36679468,2554.8,2554.6,3.91448592]
[1750417768065,0.36679468,2554.7,2554.6,3.91448592]
[1750417768361,0.36679468,2554.7,2554.6,5.41104914]
[1750417769466,0.36679468,2554.7,2554.6,3.91448592]
[1750417770167,0.36679468,2554.7,2554.6,3.91450716]
[1750417770371,0.3668026,2554.7,2554.6,3.91450716]
[1750417771731,1.612,2554.9,2554.7,3.91421042]
[1750417771932,0.3667817,2554.8,2554.7,3.91421042]
[1750417772579,1.612,2554.9,2554.8,3.91420072]
[1750417772866,1.97880299,2554.9,2554.8,3.91420072]
[1750417773065,1.612,2554.9,2554.7,3.91426121]
[1750417773243,0.36680521,2554.8,2554.7,3.91426121]
[1750417774561,0.366796,2554.8,2554.7,3.91426121]
[1750417774767,0.36679606,2554.8,2554.7,3.91426121]
[1750417775063,0.36679606,2554.8,2554.6,3.91441384]
[1750417775267,0.36680469,2554.7,2554.6,3.91441412]
[1750417775577,1.12360469,2554.7,2554.4,3.91468397]
[1750417775769,0.36680469,2554.6,2554.1,4.66694372]
[1750417775943,0.7568,2554.7,2554.3,3.91487648]
[1750417775944,0.36668654,2554.5,2554.3,3.91487648]
[1750417776145,0.36668654,2554.4,2554.3,3.91487648]
[1750417776460,0.36669509,2554.4,2554.3,3.91487648]
[1750417777049,10.07052056,2554.7,2554.3,3.91487648]
[1750417777246,0.36669634,2554.6,2554.3,3.91487648]
[1750417777574,0.36669634,2554.5,2554.4,3.91481365]
[1750417778173,1.97869634,2554.5,2554.4,4.72111365]
[1750417778357,0.36669634,2554.5,2554.4,5.5886275]
[1750417778870,1.612,2554.6,2554.5,3.9146604]
[1750417779080,1.97869898,2554.6,2554.5,3.9146604]
[1750417780660,0.36669898,2554.6,2554.5,3.9146604]
[1750417780859,0.36669898,2554.6,2554.5,5.88787684]
[1750417781411,1.612,2555.1,2554.9,3.91393055]
[1750417781689,0.36673359,2555.0,2554.9,3.91393055]
[1750417784476,0.36675576,2555.0,2554.9,3.91393055]
[1750417785281,1.612,2555.1,2555.0,3.91389432]
[1750417785595,1.97872949,2555.1,2555.0,3.91389432]
[1750417786283,0.36673609,2555.1,2555.0,3.91389432]
[1750417787490,0.36672365,2555.1,2555.0,3.91389432]
[1750417788384,1.612,2555.2,2555.1,3.91373405]
[1750417788592,1.97866734,2555.2,2555.1,3.91373405]
[1750417789481,0.36666734,2555.2,2555.1,3.91373405]
[1750417789708,0.36666976,2555.2,2555.1,3.91373405]
[1750417789903,0.36666976,2555.2,2555.1,4.77694591]
[1750417790274,0.36662665,2555.2,2555.1,4.77694591]
[1750417790869,0.36663481,2555.2,2555.1,4.77694591]
[1750417791902,0.36651036,2555.2,2555.1,4.77694591]
[1750417792291,1.612,2555.3,2555.1,4.77694591]
[1750417792495,1.612,2555.3,2555.2,3.91358797]
[1750417792697,1.612,2555.3,2555.1,0.86321186]
[1750417792698,1.97851034,2555.3,2555.1,4.77687354]
[1750417792907,0.36651034,2555.2,2555.1,4.77687354]
[1750417793314,0.36651618,2555.2,2555.1,4.77687354]
[1750417793608,0.36648543,2555.2,2555.1,4.77687354]
[1750417794476,0.36648543,2555.2,2555.1,0.86321186]
[1750417794689,0.36648543,2555.2,2555.0,3.91381887]
[1750417794909,1.14448543,2555.1,2554.9,3.91398195]
[1750417795084,0.36648543,2555.0,2554.9,3.91398195]
[1750417795289,0.36648543,2555.0,2554.8,3.91412508]
[1750417795495,0.36648543,2554.9,2554.7,3.91424575]
[1750417795834,0.778,2555.1,2554.8,3.91418906]
[1750417796000,1.97836707,2555.0,2554.8,3.91418906]
[1750417796199,0.36636707,2554.9,2554.8,3.91418906]
[1750417797015,0.36638498,2554.9,2554.8,3.91418906]
[1750417797323,0.778,2555.1,2554.9,3.91404751]
[1750417797504,0.36638512,2555.0,2554.9,3.91404751]
[1750417797709,0.36638358,2555.0,2554.9,3.91404751]
[1750417799021,2.39,2555.1,2555.0,3.91389432]
[1750417799185,2.7563779,2555.1,2555.0,3.91389432]
[1750417799382,2.7563779,2555.1,2554.9,3.91395789]
[1750417799583,0.3663779,2555.0,2554.9,3.91395789]
[1750417801304,2.39,2555.1,2555.0,3.91389432]
[1750417801505,2.75634362,2555.1,2555.0,3.91389432]
[1750417801803,2.75634154,2555.1,2554.9,3.91395126]
[1750417802000,2.75634154,2555.1,2554.5,2.74131644]
[1750417802001,0.36634154,2555.0,2554.5,2.74131644]
[1750417802201,10.6605401,2554.7,2554.2,0.8216]
[1750417802404,7.55751486,2554.5,2554.1,3.915127]
[1750417802728,0.36634154,2554.4,2554.2,3.91510371]
[1750417802891,0.36634154,2554.3,2554.0,3.91541755]
[1750417803095,0.36634154,2554.2,2554.0,3.91541755]
[1750417803316,11.47227748,2554.5,2554.0,3.91541755]
[1750417803495,0.36572236,2554.4,2554.1,3.91527101]
[1750417803825,0.36572236,2554.3,2554.2,3.91512019]
[1750417804004,1.97772236,2554.3,2554.2,3.91512019]
[1750417804207,1.97767078,2554.3,2554.2,3.91512019]
[1750417804400,1.97767061,2554.3,2554.2,3.91512019]
[1750417805002,0.36567061,2554.3,2554.2,3.91512019]
[1750417805392,0.36567204,2554.3,2554.2,3.91512019]
[1750417806129,1.612,2554.4,2554.2,3.91512019]
[1750417806328,1.612,2554.4,2554.3,3.91496691]
[1750417806659,1.97743105,2554.4,2554.3,3.91496691]
[1750417807129,1.97743118,2554.4,2554.3,3.91496691]
[1750417807321,1.612,2554.4,2554.3,3.91496691]
[1750417807625,1.97743048,2554.4,2554.3,3.91496691]
[1750417808399,1.97739921,2554.4,2554.3,3.91496691]
[1750417809336,1.97712955,2554.4,2554.3,3.91496691]
[1750417810193,1.612,2554.4,2554.3,3.91496691]
[1750417810404,0.36512403,2554.4,2554.3,3.91496691]
[1750417810610,1.612,2554.4,2554.3,3.91496691]
[1750417810810,1.97712403,2554.4,2554.3,3.91496691]
[1750417811010,1.97706249,2554.4,2554.3,3.91496691]
[1750417811222,1.97705813,2554.4,2554.3,3.91496691]
[1750417811662,0.36505291,2554.4,2554.3,3.91496691]
[1750417811947,1.612,2554.4,2554.3,3.91496691]
[1750417812238,1.97705214,2554.4,2554.3,3.91496691]
[1750417812537,1.612,2554.4,2554.3,3.91496691]
[1750417812745,1.97697824,2554.4,2554.3,3.91496691]
[1750417812940,1.612,2554.4,2554.3,3.91496691]
[1750417813349,1.97696143,2554.4,2554.3,3.91496691]
[1750417813849,1.97696143,2554.4,2554.2,3.91504737]
[1750417814018,1.612,2554.4,2554.2,3.91504737]
[1750417814219,1.612,2554.4,2554.3,3.91496691]
[1750417814421,1.97698306,2554.4,2554.3,3.91496691]
[1750417814863,1.97698306,2554.4,2554.2,3.91503283]
[1750417815016,1.612,2554.4,2554.2,3.91503283]
[1750417817150,1.612,2554.4,2554.3,3.91496691]
[1750417817356,1.97695466,2554.4,2554.3,3.91496691]
[1750417818426,1.612,2554.4,2554.3,3.91496691]
[1750417818830,0.36497974,2554.4,2554.3,3.91496691]
[1750417819062,1.612,2554.4,2554.3,3.91496691]
[1750417819261,1.97697729,2554.4,2554.3,3.91496691]
[1750417819964,10.0,2554.6,2554.3,3.91496691]
[1750417820136,1.97700279,2554.5,2554.3,3.91496691]
[1750417820436,0.36500279,2554.4,2554.3,3.91496691]
[1750417820631,1.612,2554.5,2554.3,3.91496691]
[1750417820831,0.36505002,2554.4,2554.3,3.91496691]
[1750417821056,0.36504944,2554.4,2554.3,3.91496691]
[1750417821531,0.36504944,2554.4,2554.2,3.91503201]
[1750417822764,1.612,2554.5,2554.2,3.91503201]
[1750417822956,0.36524435,2554.4,2554.2,3.91503201]
[1750417823679,0.36524435,2554.3,2554.2,3.91503201]
[1750417823840,0.36524435,2554.4,2554.3,3.91496691]
[1750417824541,0.36524435,2554.4,2554.2,4.61776668]
[1750417824736,1.612,2554.5,2554.2,4.61776668]
[1750417824950,0.36547078,2554.4,2554.2,3.91504012]
[1750417825148,1.612,2554.4,2554.3,3.91496691]
[1750417825484,1.97751332,2554.4,2554.3,3.91496691]
[1750417826650,1.97776253,2554.4,2554.3,3.91496691]
[1750417827290,1.97776253,2554.4,2554.2,3.91503106]
[1750417827590,0.36575849,2554.3,2554.2,3.91503106]
[1750417827793,0.36575821,2554.3,2554.2,3.91503106]
[1750417828683,0.36575821,2554.3,2554.2,4.69805444]
[1750417829451,1.612,2554.4,2554.3,3.91496691]
[1750417829652,2.34518908,2554.4,2554.3,3.91496691]
[1750417830091,2.34518785,2554.4,2554.3,3.91496691]
[1750417830690,2.34519156,2554.4,2554.3,3.91496691]
[1750417831192,1.97859585,2554.4,2554.3,3.91496691]
[1750417833294,2.34527199,2554.4,2554.3,3.91496691]
[1750417833491,2.34535036,2554.4,2554.3,3.91496691]
[1750417833694,2.34534912,2554.4,2554.3,3.91496691]
[1750417834501,2.3453274,2554.4,2554.1,3.9151949]
[1750417834804,0.3666536,2554.3,2554.2,3.91505805]
[1750417834971,0.3666536,2554.3,2554.1,3.91513146]
[1750417835172,0.3666536,2554.2,2554.1,3.91513146]
[1750417835600,4.28184597,2554.2,2553.8,3.91570248]
[1750417835796,1.1478536,2554.1,2553.5,0.8331]
[1750417836114,0.3666536,2554.0,2553.9,3.91557718]
[1750417836476,0.36661319,2554.0,2553.9,3.91557718]
[1750417836788,0.36661016,2554.0,2553.9,3.91557718]
[1750417837284,0.7812,2554.1,2554.0,3.91542678]
[1750417837482,1.5144208,2554.1,2554.0,3.91542678]
[1750417837682,1.51441909,2554.1,2554.0,3.91542678]
[1750417837885,0.73321569,2554.1,2554.0,3.91542678]
[1750417838094,1.97860781,2554.1,2554.0,3.91542678]
[1750417838697,1.97817047,2554.1,2554.0,3.91542678]
[1750417839002,1.97814137,2554.1,2554.0,3.91542678]
[1750417839164,10.7812,2554.4,2554.1,3.91521824]
[1750417839363,2.56397039,2554.3,2554.1,3.91521824]
[1750417839595,0.36614245,2554.2,2554.1,3.91521824]
[1750417839771,0.36614245,2554.2,2553.8,0.8331]
[1750417840106,0.36614468,2554.1,2554.0,3.91542577]
[1750417840395,0.36613371,2554.1,2554.0,3.91542577]
[1750417840601,0.36610141,2554.1,2554.0,3.91542577]
[1750417840761,0.36608296,2554.1,2554.0,3.91542577]
[1750417841164,0.36600685,2554.1,2554.0,3.91542577]
[1750417841399,1.612,2554.3,2554.0,3.91542577]
[1750417841602,0.36599345,2554.2,2554.0,3.91542577]
[1750417841893,0.36588918,2554.1,2554.0,3.91542577]
[1750417842100,1.97788918,2554.1,2554.0,3.91542577]
[1750417842296,1.612,2554.1,2554.0,3.91542577]
[1750417842599,1.97788489,2554.1,2554.0,3.91542577]
[1750417843797,1.97786675,2554.1,2554.0,3.91542577]
[1750417845201,0.36586675,2554.1,2554.0,3.91542577]
[1750417845368,1.97777151,2554.1,2554.0,3.91542577]
[1750417845567,1.612,2554.1,2554.0,3.91542577]
[1750417845773,0.36572952,2554.1,2554.0,3.91542577]
[1750417845992,1.97770492,2554.1,2554.0,3.91542577]